bitfinex/quotes_BTCUSD_20260103
["timestamp","ask_amount","ask_price","bid_price","bid_amount"]
[1767436438092,0.01113858,89778.0,89772.0,0.01113933]
[1767436438288,0.01113858,89778.0,89773.0,0.0111392]
[1767436438724,0.01113821,89781.0,89775.0,0.01113895]
[1767436438916,0.06682818,89783.0,89778.0,0.000999]
[1767436439117,0.01113821,89781.0,89775.0,0.01113895]
[1767436439479,0.01113821,89781.0,89776.0,0.01113883]
[1767436440217,0.01113833,89780.0,89774.0,0.01113908]
[1767436440577,0.01113846,89779.0,89774.0,0.01113908]
[1767436440779,0.01113833,89780.0,89774.0,0.01113908]
[1767436441010,0.01113846,89779.0,89774.0,0.01113908]
[1767436441398,0.01113796,89783.0,89774.0,0.06683439]
[1767436441606,0.01113796,89783.0,89778.0,0.01113858]
[1767436441794,0.01128784,89784.0,89778.0,0.01113858]
[1767436442408,0.00015,89784.0,89780.0,0.01113833]
[1767436442644,0.01136,89785.0,89784.0,0.000849]
[1767436442857,0.01136,89785.0,89780.0,0.01113833]
[1767436443295,0.02249771,89785.0,89779.0,0.01113846]
[1767436443513,0.01113784,89784.0,89778.0,0.01113858]
[1767436443728,0.01113796,89783.0,89777.0,0.0668322]
[1767436444116,0.01113796,89783.0,89778.0,0.05626525]
[1767436444344,0.01113796,89783.0,89778.0,0.01113858]
[1767436445038,0.01113784,89784.0,89778.0,0.01113858]
[1767436445394,0.01113784,89784.0,89779.0,0.01113846]
[1767436445596,0.01133771,89785.0,89779.0,0.01113846]
[1767436446051,0.01113784,89784.0,89778.0,0.01113858]
[1767436446621,0.01113784,89784.0,89779.0,0.01113846]
[1767436446937,0.01113784,89784.0,89778.0,0.01113858]
[1767436447082,0.01113796,89783.0,89777.0,0.01113871]
[1767436447286,0.01113809,89782.0,89777.0,0.01113871]
[1767436447850,0.01113784,89784.0,89778.0,0.01113858]
[1767436448472,0.01133771,89785.0,89779.0,0.01113846]
[1767436448876,0.01133771,89785.0,89780.0,0.01113833]
[1767436449120,0.01113784,89784.0,89778.0,0.01113858]
[1767436449524,0.22272171,89799.0,89784.0,0.05568863]
[1767436449724,0.01113709,89790.0,89784.0,0.000849]
[1767436449932,0.01113734,89788.0,89782.0,0.01113809]
[1767436450274,0.01113746,89787.0,89782.0,0.01113809]
[1767436450479,0.01113746,89787.0,89781.0,0.01113821]
[1767436451791,0.01113759,89786.0,89780.0,0.30605629]
[1767436452159,0.01113734,89788.0,89781.0,0.01113821]
[1767436452541,0.01113746,89787.0,89782.0,0.01113809]
[1767436452829,0.01113734,89788.0,89782.0,0.01113809]
[1767436453236,0.01113746,89787.0,89782.0,0.01113809]
[1767436453396,0.01113734,89788.0,89783.0,0.01113796]
[1767436453598,0.01113697,89791.0,89783.0,0.01113796]
[1767436453861,0.01113709,89790.0,89783.0,0.01113796]
[1767436454395,0.01113709,89790.0,89784.0,0.01113784]
[1767436454596,0.06682309,89790.0,89783.0,0.01113796]
[1767436454797,0.01113722,89789.0,89784.0,0.01113784]
[1767436455036,0.01113722,89789.0,89783.0,0.01113796]
[1767436455400,0.01113722,89789.0,89784.0,0.01113784]
[1767436455807,0.01113722,89789.0,89783.0,0.01113796]
[1767436456353,0.01113734,89788.0,89783.0,0.01113796]
[1767436456655,0.01113722,89789.0,89782.0,0.05569008]
[1767436456827,0.01113734,89788.0,89783.0,0.01113796]
[1767436457032,0.01113722,89789.0,89783.0,0.01113796]
[1767436457898,0.01113734,89788.0,89782.0,0.01113809]
[1767436458108,0.01113746,89787.0,89782.0,0.01113809]
[1767436458313,0.01113734,89788.0,89783.0,0.01113796]
[1767436458572,0.06682382,89789.0,89782.0,0.01113809]
[1767436459028,0.01113734,89788.0,89782.0,0.01113809]
[1767436459462,0.01113734,89788.0,89783.0,0.01113796]
[1767436459672,0.01113746,89787.0,89782.0,0.01113809]
[1767436461112,0.01113734,89788.0,89783.0,0.01113796]
[1767436461315,0.01113734,89788.0,89782.0,0.01113809]
[1767436461530,0.01113746,89787.0,89782.0,0.01113809]
[1767436461755,0.01113734,89788.0,89782.0,0.01113809]
[1767436461979,0.01113746,89787.0,89782.0,0.01113809]
[1767436462472,0.01113734,89788.0,89782.0,0.01113809]
[1767436462677,0.01113734,89788.0,89781.0,0.01113821]
[1767436462834,0.01113759,89786.0,89781.0,0.01113821]
[1767436463245,0.01113746,89787.0,89782.0,0.01113809]
[1767436463632,0.01113759,89786.0,89780.0,0.06682984]
[1767436463962,0.01113746,89787.0,89780.0,0.06682984]
[1767436464167,0.06682568,89786.0,89778.0,0.05626525]
[1767436464369,0.00015,89780.0,89776.0,0.01113883]
[1767436464563,0.01113809,89782.0,89777.0,0.01113871]
[1767436464732,0.01113809,89782.0,89776.0,0.01113883]
[1767436464932,0.01113809,89782.0,89777.0,0.01113871]
[1767436465153,0.01113796,89783.0,89778.0,0.01113858]
[1767436465370,0.01113809,89782.0,89777.0,0.01113871]
[1767436465577,0.00015,89778.0,89777.0,0.01113871]
[1767436465795,0.01113809,89782.0,89777.0,0.01113871]
[1767436466000,0.01113821,89781.0,89776.0,0.01113883]
[1767436466337,0.01113833,89780.0,89775.0,0.01113895]
[1767436466737,0.01113809,89782.0,89777.0,0.01113871]
[1767436466937,0.01113809,89782.0,89777.0,0.01098871]
[1767436468393,0.01113796,89783.0,89778.0,0.01113858]
[1767436469417,0.01113784,89784.0,89779.0,0.01113846]
[1767436470477,0.01113784,89784.0,89778.0,0.01113858]
[1767436470478,0.01113796,89783.0,89778.0,0.01113858]
[1767436470677,0.01113784,89784.0,89779.0,0.01113846]
[1767436470915,0.01113796,89783.0,89778.0,0.01113858]
[1767436472139,0.01113784,89784.0,89779.0,0.01113846]
[1767436474697,0.01113784,89784.0,89778.0,0.01113858]
[1767436474996,0.01113784,89784.0,89779.0,0.01113846]
[1767436475308,0.06682482,89787.0,89780.0,0.01113833]
[1767436475461,0.01113759,89786.0,89780.0,0.01113833]
[1767436475660,0.01113771,89785.0,89779.0,0.01113846]
[1767436475895,0.01113771,89785.0,89780.0,0.01113833]
[1767436477995,0.01113759,89786.0,89781.0,0.01113821]
[1767436480023,0.06682381,89789.0,89782.0,0.01113809]
[1767436480232,0.01113734,89788.0,89782.0,0.01113809]
[1767436480989,0.01113734,89788.0,89781.0,0.01113821]
[1767436481573,0.01113734,89788.0,89782.0,0.01113809]
[1767436482033,0.05568734,89787.0,89781.0,0.01113821]
[1767436482419,0.0668248,89787.0,89780.0,0.01113833]
[1767436482618,0.01113759,89786.0,89781.0,0.01113821]
[1767436483048,0.01113759,89786.0,89780.0,0.01113833]
[1767436483214,0.01113771,89785.0,89780.0,0.01113833]
[1767436483947,0.01113759,89786.0,89780.0,0.01113833]
[1767436484354,0.01113759,89786.0,89781.0,0.01113821]
[1767436485346,0.0668248,89787.0,89781.0,0.01113821]
[1767436485553,0.01113759,89786.0,89781.0,0.01113821]
[1767436485787,0.01113746,89787.0,89782.0,0.01113809]
[1767436485995,0.01113746,89787.0,89781.0,0.01113821]
[1767436486313,0.066826,89786.0,89779.0,0.01113846]
[1767436486563,0.066826,89786.0,89780.0,0.01113833]
[1767436486765,0.01113746,89787.0,89781.0,0.01113821]
[1767436486944,0.01113759,89786.0,89781.0,0.01113821]
[1767436487328,0.01113759,89786.0,89780.0,0.01113833]
[1767436487654,0.01113746,89787.0,89781.0,0.01113821]
[1767436487854,0.07798076,89793.0,89786.0,0.01113759]
[1767436488031,0.01116,89793.0,89790.0,0.01113709]
[1767436489219,0.0111361,89798.0,89793.0,0.01213572]
[1767436489446,0.01113622,89797.0,89793.0,0.000999]
[1767436489665,0.01113622,89797.0,89790.0,0.01113709]
[1767436489666,0.01113647,89795.0,89790.0,0.01113709]
[1767436489869,0.06681789,89797.0,89789.0,0.01113722]
[1767436490071,0.01113647,89795.0,89790.0,0.01113709]
[1767436490205,0.01113622,89797.0,89791.0,0.01113697]
[1767436490406,0.01116,89801.0,89798.0,0.0111361]
[1767436490979,0.06681123,89806.0,89799.0,0.01113598]
[1767436491112,0.06681123,89806.0,89798.0,0.0111361]
[1767436491113,0.01113536,89804.0,89798.0,0.0111361]
[1767436491312,0.01113548,89803.0,89798.0,0.0111361]
[1767436491514,0.01113548,89803.0,89797.0,0.01113622]
[1767436491719,0.01113548,89803.0,89798.0,0.0111361]
[1767436492228,0.0112856,89802.0,89796.0,0.06681759]
[1767436492435,0.0112856,89802.0,89797.0,0.01113622]
[1767436492954,0.0112856,89802.0,89796.0,0.06681759]
[1767436493282,0.0112856,89802.0,89797.0,0.01113622]
[1767436493888,0.00015,89802.0,89797.0,0.01113622]
[1767436494048,0.00015,89802.0,89798.0,0.0111361]
[1767436494456,0.00911323,89805.0,89797.0,0.05656573]
[1767436494654,0.01113548,89803.0,89797.0,0.05656573]
[1767436494863,0.0111356,89802.0,89796.0,0.01113635]
[1767436495202,0.01113536,89804.0,89798.0,0.0111361]
[1767436495440,0.06681262,89804.0,89797.0,0.01113622]
[1767436495771,0.00015,89797.0,89796.0,0.01113635]
[1767436495979,0.00015,89797.0,89795.0,0.01113647]
[1767436496174,0.00015,89797.0,89794.0,0.06681919]
[1767436496378,0.00015,89797.0,89792.0,0.05656635]
[1767436496379,0.01113622,89797.0,89792.0,0.01113684]
[1767436496730,0.01113598,89799.0,89793.0,0.02229672]
[1767436496966,0.01113598,89799.0,89793.0,0.01101]
[1767436497127,0.01113622,89797.0,89793.0,0.01101]
[1767436498279,0.0111361,89798.0,89793.0,0.01101]
[1767436498490,0.0111361,89798.0,89793.0,0.02214672]
[1767436498621,0.01113622,89797.0,89793.0,0.01101]
[1767436498828,0.0111361,89798.0,89793.0,0.01101]
[1767436499024,0.02795239,89799.0,89793.0,0.02214672]
[1767436499229,0.06681564,89800.0,89793.0,0.02214672]
[1767436499230,0.06681564,89800.0,89794.0,0.05656611]
[1767436499477,0.01113585,89800.0,89795.0,0.04542951]
[1767436499679,0.0111356,89802.0,89796.0,0.01113635]
[1767436499845,0.0111356,89802.0,89800.0,0.000999]
[1767436500059,0.0111356,89802.0,89797.0,0.01113622]
[1767436500587,0.0111356,89802.0,89795.0,0.05656598]
[1767436500784,0.01113573,89801.0,89796.0,0.01113635]
[1767436500997,0.01113585,89800.0,89795.0,0.04542951]
[1767436501155,0.01113585,89800.0,89795.0,0.05656598]
[1767436501842,0.01113573,89801.0,89795.0,0.04542951]
[1767436502390,0.01113598,89799.0,89795.0,0.04542951]
[1767436502753,0.0111361,89798.0,89793.0,0.01101]
[1767436502955,0.01113635,89796.0,89793.0,0.01101]
[1767436503156,0.01113635,89796.0,89784.0,0.02229784]
[1767436503157,0.04673528,89790.0,89784.0,0.02229784]
[1767436503344,0.04573628,89790.0,89786.0,0.01113759]
[1767436503550,0.01113672,89793.0,89786.0,0.01113759]
[1767436503551,0.05787212,89792.0,89786.0,0.01113759]
[1767436503749,0.04673528,89792.0,89788.0,0.01113734]
[1767436503951,0.04673528,89797.0,89791.0,0.01113697]
[1767436504150,0.04673528,89797.0,89792.0,0.01113684]
[1767436504399,0.05787163,89796.0,89791.0,0.01113697]
[1767436504639,0.04673528,89796.0,89792.0,0.01113684]
[1767436505273,0.05787163,89796.0,89791.0,0.01113697]
[1767436505469,0.04673528,89796.0,89792.0,0.01113684]
[1767436505858,0.04673528,89796.0,89791.0,0.01113697]
[1767436506908,0.04673528,89796.0,89792.0,0.01113684]
[1767436507326,0.01113635,89796.0,89792.0,0.01113684]
[1767436507492,0.0111361,89798.0,89792.0,0.01113684]
[1767436507698,0.01113622,89797.0,89792.0,0.01113684]
[1767436507908,0.01113635,89796.0,89790.0,0.01113709]
[1767436508306,0.01113647,89795.0,89790.0,0.01113709]
[1767436508517,0.01113635,89796.0,89791.0,0.01113697]
[1767436509739,0.01113635,89796.0,89787.0,0.01113746]
[1767436509740,0.000999,89791.0,89787.0,0.01113746]
[1767436510086,0.01113672,89793.0,89788.0,0.01113734]
[1767436510421,0.01113697,89791.0,89785.0,0.01113771]
[1767436510716,0.01113672,89793.0,89787.0,0.01113746]
[1767436511102,0.01113684,89792.0,89787.0,0.01113746]
[1767436512194,0.01113672,89793.0,89787.0,0.01113746]
[1767436513094,0.01113684,89792.0,89787.0,0.01113746]
[1767436514096,0.01113672,89793.0,89786.0,0.01113759]
[1767436514292,0.01113684,89792.0,89787.0,0.01113746]
[1767436514496,0.01113672,89793.0,89788.0,0.01113734]
[1767436514797,0.01113647,89795.0,89793.0,4.4e-05]
[1767436515404,0.01113635,89796.0,89791.0,0.01113697]
[1767436515564,0.01113622,89797.0,89792.0,0.01113684]
[1767436515951,0.01109222,89797.0,89792.0,0.01113684]
[1767436517813,0.06681663,89798.0,89793.0,0.01113672]
[1767436518013,0.06681663,89798.0,89793.0,0.01213572]
[1767436518222,0.06681663,89798.0,89792.0,0.01113684]
[1767436518223,0.01113622,89797.0,89792.0,0.01113684]
[1767436518365,0.01113622,89797.0,89791.0,0.01113697]
[1767436518575,0.01113622,89797.0,89792.0,0.01113684]
[1767436518787,0.01113635,89796.0,89791.0,0.01113697]
[1767436520057,0.01113622,89797.0,89792.0,0.01113684]
[1767436520312,0.01113635,89796.0,89791.0,0.01113697]
[1767436520489,0.01113635,89796.0,89792.0,0.01113684]
[1767436520832,0.01113622,89797.0,89792.0,0.01113684]
[1767436521924,0.01113622,89797.0,89791.0,0.01113697]
[1767436522418,0.01113622,89797.0,89792.0,0.01113684]
[1767436523398,0.01113635,89796.0,89791.0,0.01113697]
[1767436525294,0.01113635,89796.0,89792.0,0.01113684]
[1767436525833,0.01113622,89797.0,89791.0,0.01113697]
[1767436525995,0.01113647,89795.0,89789.0,0.01113722]
[1767436526410,0.01113647,89795.0,89790.0,0.01113709]
[1767436527353,0.01113635,89796.0,89791.0,0.01113697]
[1767436527506,0.01113647,89795.0,89790.0,0.01113709]
[1767436527713,0.0111366,89794.0,89790.0,0.01113709]
[1767436528257,0.01113647,89795.0,89790.0,0.01113709]
[1767436528561,0.0111366,89794.0,89790.0,0.01113709]
[1767436528936,0.01113647,89795.0,89793.0,0.22]
[1767436529134,0.01113647,89795.0,89793.0,0.219001]
[1767436529341,0.01113635,89796.0,89793.0,0.219001]
[1767436533695,0.01113622,89797.0,89793.0,0.219001]
[1767436534734,0.01113635,89796.0,89793.0,0.219001]
[1767436534985,0.01113622,89797.0,89793.0,0.219001]
[1767436535657,0.01113635,89796.0,89793.0,0.219001]
[1767436538107,0.06681857,89796.0,89793.0,0.219001]
[1767436538331,0.01113635,89796.0,89793.0,0.219001]
[1767436539485,0.01113622,89797.0,89793.0,0.219001]
[1767436539908,0.01113635,89796.0,89793.0,0.219001]
[1767436541525,0.06681773,89797.0,89793.0,0.219001]
[1767436541670,0.01113622,89797.0,89793.0,0.219001]
[1767436542112,0.0111361,89798.0,89793.0,0.23013772]
[1767436542906,0.02229585,89800.0,89798.0,0.000999]
[1767436543107,0.01113598,89799.0,89798.0,0.000999]
[1767436543532,0.0111361,89798.0,89793.0,0.23013772]
[1767436544603,0.01113598,89799.0,89794.0,0.0111366]
[1767436544725,0.01113598,89799.0,89793.0,0.23013772]
[1767436545915,0.01113598,89799.0,89794.0,0.0111366]
[1767436547840,0.01113598,89799.0,89793.0,0.23013772]
[1767436548042,0.0111361,89798.0,89794.0,0.0111366]
[1767436548246,0.01113598,89799.0,89794.0,0.0111366]
[1767436548545,0.0111361,89798.0,89793.0,0.23013772]
[1767436551426,0.01113598,89799.0,89793.0,0.23013772]
[1767436551625,0.01113622,89797.0,89793.0,0.219001]
[1767436551793,0.0111361,89798.0,89794.0,0.0111366]
[1767436551942,0.0111361,89798.0,89793.0,0.23013772]
[1767436552139,0.01113622,89797.0,89793.0,0.219001]
[1767436552546,0.01113598,89799.0,89793.0,0.23013772]
[1767436553263,0.0111361,89798.0,89794.0,0.0111366]
[1767436553479,0.0111361,89798.0,89793.0,0.23013772]
[1767436553838,0.01113622,89797.0,89793.0,0.219001]
[1767436554036,0.01113622,89797.0,89793.0,0.23013772]
[1767436554238,0.0111361,89798.0,89793.0,0.23013772]
[1767436554779,0.01113598,89799.0,89794.0,0.0111366]
[1767436555696,0.071681,89800.0,89795.0,0.01113647]
[1767436555831,0.0556799,89799.0,89793.0,0.219001]
[1767436556186,0.01113622,89797.0,89793.0,0.219001]
[1767436557109,0.01113622,89797.0,89793.0,0.23013772]
[1767436557513,0.0111361,89798.0,89793.0,0.23013772]
[1767436557709,0.01113598,89799.0,89794.0,0.0111366]
[1767436558074,0.0111361,89798.0,89793.0,0.23013772]
[1767436558462,0.0111361,89798.0,89793.0,0.219001]
[1767436558968,0.0111361,89798.0,89793.0,0.23013772]
[1767436559734,0.01113598,89799.0,89794.0,0.0111366]
[1767436559883,0.12736063,89800.0,89795.0,0.01113647]
[1767436560060,0.071681,89800.0,89795.0,0.01113647]
[1767436561151,0.00987298,89808.0,89803.0,0.01113548]
[1767436561340,0.01116,89807.0,89804.0,0.01113536]
[1767436561570,0.00063714,89814.0,89806.0,0.01113511]
[1767436561750,0.00063714,89814.0,89810.0,0.01113461]
[1767436561924,0.01153424,89813.0,89808.0,0.01113486]
[1767436562255,0.01113461,89810.0,89805.0,0.01113523]
[1767436562426,0.01113461,89810.0,89803.0,0.01113548]
[1767436562629,0.01113474,89809.0,89803.0,0.01113548]
[1767436562794,0.01113474,89809.0,89801.0,0.06681395]
[1767436562795,0.01113474,89809.0,89802.0,0.0111356]
[1767436563195,0.06680894,89809.0,89802.0,0.0111356]
[1767436563653,0.06686899,89809.0,89802.0,0.0111356]
[1767436563948,0.000999,89802.0,89800.0,0.01113585]
[1767436564386,0.01113511,89806.0,89801.0,0.01113573]
[1767436564591,6.005e-05,89809.0,89803.0,0.01113548]
[1767436564801,0.01119479,89809.0,89804.0,0.01113536]
[1767436565156,0.01113486,89808.0,89804.0,0.01113536]
[1767436565645,0.01119479,89809.0,89804.0,0.01113536]
[1767436565841,0.01113486,89808.0,89803.0,0.01113548]
[1767436566142,0.000201,89816.0,89815.0,0.05566998]
[1767436566350,0.0004,89818.0,89804.0,0.01116]
[1767436566351,0.01116,89825.0,89817.0,0.01113374]
[1767436566560,0.01113288,89824.0,89820.0,0.01113337]
[1767436566703,0.000999,89820.0,89819.0,0.0111335]
[1767436566908,0.01122002,89825.0,89822.0,0.01113312]
[1767436567106,0.01122002,89825.0,89820.0,0.01113337]
[1767436567515,0.01122002,89825.0,89822.0,0.01113312]
[1767436567911,0.01122002,89825.0,89820.0,0.01113337]
[1767436568114,0.000999,89822.0,89820.0,0.01113337]
[1767436568431,0.000999,89822.0,89819.0,0.06680056]
[1767436568634,0.01122002,89825.0,89822.0,0.01113312]
[1767436568855,0.01122002,89825.0,89821.0,0.01113325]
[1767436569389,0.02235277,89825.0,89820.0,0.01113337]
[1767436569558,0.01122002,89825.0,89821.0,0.01113325]
[1767436569755,0.01122002,89825.0,89822.0,0.01113312]
[1767436570628,0.01116,89826.0,89822.0,0.01113312]
[1767436571032,0.01116,89826.0,89820.0,0.01113337]
[1767436571228,0.000999,89822.0,89820.0,0.01113337]
[1767436571674,0.02229263,89826.0,89821.0,0.01113325]
[1767436571832,0.01116,89826.0,89822.0,0.01113312]
[1767436572030,0.02229263,89826.0,89822.0,0.01113312]
[1767436572233,0.01116,89826.0,89822.0,0.01113312]
[1767436573161,0.01116,89826.0,89823.0,0.011133]
[1767436573361,0.01113238,89828.0,89823.0,0.011133]
[1767436573566,0.02229238,89828.0,89823.0,0.011133]
[1767436573984,0.01113251,89827.0,89823.0,0.011133]
[1767436574166,0.01113263,89826.0,89821.0,0.01113325]
[1767436574349,0.01113263,89826.0,89821.0,0.01013425]
[1767436574986,0.01113263,89826.0,89820.0,0.01113337]
[1767436575220,0.011133,89823.0,89817.0,0.01113374]
[1767436575405,0.05633125,89823.0,89818.0,0.01113362]
[1767436575610,0.01113312,89822.0,89817.0,0.01113374]
[1767436576590,0.01113325,89821.0,89815.0,0.01113399]
[1767436576791,0.01113325,89821.0,89816.0,0.01113387]
[1767436576985,0.0563315,89821.0,89816.0,0.01113387]
[1767436577277,0.0563315,89821.0,89817.0,0.01113374]
[1767436577518,0.01113312,89822.0,89817.0,0.01113374]
[1767436578430,0.01113312,89822.0,89818.0,0.01113362]
[1767436578654,0.05633125,89823.0,89818.0,0.01113362]
[1767436578981,0.05633125,89823.0,89820.0,0.22]
[1767436579895,0.04419925,89823.0,89820.0,0.23113337]
[1767436580096,0.01113251,89827.0,89821.0,0.01113325]
[1767436580350,0.22262244,89839.0,89821.0,0.01113325]
[1767436580351,0.01113189,89832.0,89824.0,0.05566397]
[1767436580566,0.01116,89828.0,89825.0,0.01113275]
[1767436581318,0.01116,89828.0,89824.0,0.01113288]
[1767436582143,0.01116,89828.0,89825.0,0.01113275]
[1767436584231,0.000999,89825.0,89823.0,0.011133]
[1767436584530,0.01113238,89828.0,89824.0,0.01108835]
[1767436585235,0.02229226,89829.0,89824.0,0.01108835]
[1767436585644,0.01116,89829.0,89826.0,0.01113263]
[1767436585843,0.01113127,89837.0,89826.0,0.01113263]
[1767436585844,0.02229151,89835.0,89829.0,0.01113226]
[1767436586048,0.04519825,89834.0,89830.0,0.01013313]
[1767436586196,0.04519825,89834.0,89831.0,0.01113201]
[1767436587135,0.04519825,89834.0,89830.0,0.01013313]
[1767436587316,0.04519825,89834.0,89831.0,0.01113201]
[1767436588535,0.01116,89835.0,89832.0,0.01113189]
[1767436588671,0.05635825,89835.0,89832.0,0.01113189]
[1767436589359,0.05535925,89835.0,89832.0,0.01113189]
[1767436589562,0.05535925,89835.0,89832.0,0.06679088]
[1767436590502,0.00015,89838.0,89835.0,0.01113151]
[1767436590670,0.05877305,89837.0,89835.0,0.01113151]
[1767436590871,0.04761305,89835.0,89833.0,0.05565829]
[1767436591072,0.01116,89834.0,89833.0,0.05565829]
[1767436592531,0.04761305,89835.0,89833.0,0.05565829]
[1767436592747,0.01116,89834.0,89833.0,0.05565829]
[1767436592948,0.00941948,89834.0,89833.0,0.05565829]
[1767436593152,0.00941948,89834.0,89832.0,0.06679088]
[1767436595611,0.00941948,89834.0,89828.0,0.22264604]
[1767436595612,0.01112928,89853.0,89845.0,0.01113027]
[1767436595808,0.01112928,89853.0,89823.0,0.04452]
[1767436595809,0.05874382,89841.0,89838.0,0.01116]
[1767436596015,0.04761305,89841.0,89838.0,0.02229114]
[1767436596267,0.02191263,89841.0,89838.0,0.02229114]
[1767436596832,0.02191263,89841.0,89839.0,0.02191263]
[1767436597766,0.02191263,89841.0,89839.0,0.24191263]
[1767436598697,0.04761305,89843.0,89840.0,0.01113089]
[1767436599742,0.01113027,89845.0,89840.0,0.01113089]
[1767436599949,0.05874332,89845.0,89840.0,0.01113089]
[1767436600145,0.05874332,89845.0,89839.0,0.03304365]
[1767436601475,0.05874345,89844.0,89839.0,0.03304365]
[1767436601687,0.04761305,89843.0,89839.0,0.03304365]
[1767436603447,0.04761305,89843.0,89840.0,0.01113089]
[1767436603764,0.04761305,89843.0,89841.0,0.22]
[1767436604332,0.05874332,89845.0,89841.0,0.22]
[1767436605001,0.0111304,89844.0,89841.0,0.22]
[1767436605206,0.05874345,89844.0,89841.0,0.22]
[1767436605631,0.05565123,89846.0,89841.0,0.22]
[1767436605825,0.02228953,89851.0,89846.0,0.01113015]
[1767436605975,0.01116,89851.0,89847.0,0.01113003]
[1767436606178,0.01116,89851.0,89848.0,0.0111299]
[1767436606414,0.01116,89851.0,89847.0,0.01113003]
[1767436606570,0.02228953,89851.0,89846.0,0.01113015]
[1767436606807,4.001e-05,89853.0,89847.0,0.01113003]
[1767436607004,0.01113015,89872.0,89855.0,0.01112904]
[1767436607005,1e-08,89862.0,89855.0,0.01112904]
[1767436607206,1e-08,89862.0,89857.0,0.06677265]
[1767436607444,0.0575666,89863.0,89858.0,0.01112866]
[1767436607619,0.0575666,89863.0,89856.0,0.01112891]
[1767436607620,0.04761305,89861.0,89856.0,0.01112891]
[1767436608164,0.05874147,89860.0,89855.0,0.01112904]
[1767436608305,0.04761305,89860.0,89856.0,0.01112891]
[1767436608706,0.04761305,89860.0,89857.0,0.01112879]
[1767436609319,0.04761305,89862.0,89858.0,0.01112866]
[1767436609546,0.04761305,89862.0,89859.0,0.01112854]
[1767436609702,0.04761305,89862.0,89858.0,0.01112866]
[1767436610113,0.01112805,89863.0,89858.0,0.01112866]
[1767436610389,0.0587411,89863.0,89858.0,0.01112866]
[1767436610549,0.04761305,89862.0,89858.0,0.01112866]
[1767436610946,0.05874122,89862.0,89857.0,0.01112879]
[1767436611146,0.05874122,89862.0,89858.0,0.01112866]
[1767436611343,0.05874122,89862.0,89857.0,0.01112879]
[1767436611564,0.05874122,89862.0,89858.0,0.01112866]
[1767436611779,0.05874122,89862.0,89857.0,0.01112879]
[1767436611780,0.01113127,89837.0,89829.0,0.01113226]
[1767436611977,0.05565872,89834.0,89832.0,0.01113189]
[1767436612182,0.01113213,89830.0,89827.0,0.01116]
[1767436612472,0.01113238,89828.0,89824.0,0.01131]
[1767436612717,0.06576803,89828.0,89824.0,0.01131]
[1767436612899,0.01113226,89829.0,89824.0,0.01135001]
[1767436613054,0.01113226,89829.0,89825.0,0.01113275]
[1767436613250,0.06679009,89834.0,89828.0,0.01113238]
[1767436613451,0.01113201,89831.0,89824.0,0.02248289]
[1767436613653,0.01113201,89831.0,89825.0,0.01113275]
[1767436613993,0.01113201,89831.0,89826.0,0.01113263]
[1767436614355,0.01113164,89834.0,89826.0,0.05751158]
[1767436614576,0.01113164,89834.0,89829.0,0.26637895]
[1767436614810,0.06679037,89834.0,89829.0,0.22]
[1767436615007,0.01113189,89832.0,89829.0,0.22]
[1767436615309,0.0556606,89831.0,89830.0,0.01116]
[1767436615529,5.496e-05,89827.0,89824.0,0.00019001]
[1767436615720,0.01018809,89830.0,89825.0,0.01116]
[1767436616307,0.01018809,89830.0,89825.0,0.02229275]
[1767436616492,0.01113226,89829.0,89825.0,0.02229275]
[1767436617284,0.01018809,89830.0,89825.0,0.02229275]
[1767436617486,0.01113226,89829.0,89825.0,0.01116]
[1767436618307,0.01018809,89830.0,89825.0,0.02229275]
[1767436618936,0.01113189,89832.0,89827.0,0.01113251]
[1767436619598,0.01113189,89832.0,89831.0,0.04637895]
[1767436620209,0.01113189,89832.0,89831.0,0.04537995]
[1767436620332,0.04450008,89831.0,89830.0,0.00060701]
[1767436621557,0.01113189,89832.0,89830.0,0.00060701]
[1767436622605,0.0667891,89835.0,89832.0,0.000999]
[1767436622760,0.0667891,89835.0,89833.0,0.0478527]
[1767436622965,0.01113151,89835.0,89833.0,0.0478527]
[1767436623902,0.01013264,89834.0,89831.0,0.0590127]
[1767436625552,0.01113139,89836.0,89835.0,0.0478527]
[1767436625724,0.01113139,89836.0,89835.0,0.0468537]
[1767436626653,0.01113139,89836.0,89832.0,0.0478527]
[1767436626813,0.01113151,89835.0,89832.0,0.0478527]
[1767436628381,0.01013251,89835.0,89832.0,0.0478527]
[1767436628892,0.01013251,89835.0,89833.0,0.2678527]
[1767436629248,0.01112953,89851.0,89842.0,0.05898335]
[1767436629454,0.01112904,89855.0,89846.0,0.05898285]
[1767436629659,0.01112891,89856.0,89850.0,0.05898236]
[1767436629836,0.01112904,89855.0,89851.0,0.0590127]
[1767436630179,0.01112916,89854.0,89851.0,0.0580137]
[1767436630943,0.00035912,89854.0,89851.0,0.0580137]
[1767436631149,0.00035912,89854.0,89851.0,0.06914323]
[1767436632026,0.00035912,89854.0,89851.0,0.0580137]
[1767436632897,0.00035912,89854.0,89851.0,0.010161]
[1767436633132,0.01148828,89854.0,89851.0,0.010161]
[1767436633520,0.06713453,89854.0,89851.0,0.010161]
[1767436633899,0.05564706,89852.0,89851.0,0.010161]
[1767436635247,0.05564706,89852.0,89851.0,0.0016778]
[1767436636272,0.06713453,89854.0,89851.0,0.0016778]
[1767436639515,0.01112879,89857.0,89854.0,0.00063988]
[1767436639753,0.01112829,89861.0,89854.0,0.00063988]
[1767436640069,0.01112805,89863.0,89858.0,0.0478527]
[1767436640245,0.01112805,89863.0,89856.0,0.01112891]
[1767436640246,0.01112805,89863.0,89860.0,0.0478527]
[1767436640991,0.01112805,89863.0,89860.0,0.03956049]
[1767436641598,0.01048805,89863.0,89860.0,0.03956049]
[1767436641802,0.06612843,89863.0,89860.0,0.03956049]
[1767436642008,0.01048805,89863.0,89860.0,0.03956049]
[1767436642405,0.01048805,89863.0,89860.0,0.03856149]
[1767436642608,0.01112817,89862.0,89859.0,0.01116]
[1767436647313,0.05564377,89858.0,89847.0,0.01113003]
[1767436647491,0.06677326,89857.0,89848.0,0.0111299]
[1767436647689,0.04980008,89855.0,89850.0,0.01116]
[1767436648033,0.01112891,89856.0,89850.0,0.01116]
[1767436648034,0.01112891,89856.0,89851.0,0.01112953]
[1767436648370,0.01112879,89857.0,89852.0,0.01116]
[1767436648538,0.01112854,89859.0,89853.0,0.01112928]
[1767436648898,0.01112854,89859.0,89856.0,0.00066769]
[1767436649953,0.01112854,89859.0,89857.0,0.01116]
[1767436651371,0.01112842,89860.0,89859.0,0.000999]
[1767436651941,0.06677025,89861.0,89857.0,0.01116]
[1767436652418,0.01112842,89860.0,89857.0,0.01116]
[1767436652617,0.06677025,89861.0,89857.0,0.01116]
[1767436653129,0.01112842,89860.0,89857.0,0.01116]
[1767436655981,0.06677099,89860.0,89857.0,0.01116]
[1767436656181,0.05564315,89859.0,89857.0,0.01116]
[1767436656382,0.05564389,89858.0,89856.0,0.00066769]
[1767436656686,0.05564389,89858.0,89857.0,0.01116]
[1767436657063,0.06677169,89859.0,89857.0,0.01116]
[1767436659520,0.01112817,89862.0,89859.0,0.000999]